bitfinex/quotes_BTCUSD_20251019
["timestamp","ask_amount","ask_price","bid_price","bid_amount"]
[1760869164282,0.00201878,107630.0,107620.0,0.77304506]
[1760869166478,0.0004,107630.0,107620.0,0.93847932]
[1760869166889,0.00111164,107630.0,107620.0,0.93847932]
[1760869168720,0.00111164,107630.0,107620.0,1.23847932]
[1760869170339,1e-08,107630.0,107620.0,1.1273616]
[1760869170487,1e-08,107630.0,107620.0,1.13736159]
[1760869170893,0.00161867,107630.0,107620.0,1.13736159]
[1760869171101,0.00161867,107630.0,107620.0,1.1273616]
[1760869171410,1e-08,107630.0,107620.0,1.13636159]
[1760869171630,0.0004,107640.0,107630.0,0.22200407]
[1760869171827,0.0004,107640.0,107630.0,1.09354287]
[1760869173467,0.0004,107640.0,107630.0,1.05836059]
[1760869173668,0.0004,107640.0,107630.0,1.09454287]
[1760869175401,0.0004,107640.0,107630.0,1.24184287]
[1760869176630,0.0016583,107650.0,107640.0,0.56198681]
[1760869176808,0.0016583,107650.0,107640.0,1.11393944]
[1760869176809,0.00180704,107650.0,107640.0,1.11393944]
[1760869177416,0.00180704,107650.0,107640.0,1.08147951]
[1760869177623,0.00018874,107650.0,107640.0,1.11766179]
[1760869177818,0.00090017,107650.0,107640.0,1.11766179]
[1760869178605,0.00090017,107650.0,107640.0,1.13565215]
[1760869178949,0.00090017,107650.0,107640.0,1.13665215]
[1760869179349,0.00090017,107650.0,107640.0,1.13565215]
[1760869179739,0.00090017,107650.0,107640.0,1.13665215]
[1760869180961,0.00251815,107650.0,107640.0,1.13665215]
[1760869182921,0.00251815,107650.0,107640.0,1.23466215]
[1760869183146,0.00251815,107650.0,107640.0,1.13665215]
[1760869187183,0.00251815,107650.0,107640.0,1.28395215]
[1760869187580,0.00251815,107650.0,107640.0,1.29395214]
[1760869189500,0.00251815,107650.0,107640.0,1.01739215]
[1760869189947,0.00251815,107650.0,107640.0,0.87180179]
[1760869190148,0.00251815,107650.0,107640.0,0.96592179]
[1760869190708,0.0004,107660.0,107650.0,0.86196955]
[1760869190916,0.0004,107660.0,107650.0,1.0455846]
[1760869191735,1e-08,107660.0,107650.0,1.0455846]
[1760869191940,1e-08,107660.0,107650.0,1.8065326]
[1760869192650,1e-08,107660.0,107650.0,1.8055326]
[1760869192850,1e-08,107660.0,107650.0,1.79553261]
[1760869193050,1e-08,107660.0,107650.0,1.8065326]
[1760869195269,1e-08,107660.0,107650.0,0.7465846]
[1760869195493,1e-08,107660.0,107650.0,0.8406646]
[1760869195699,1e-08,107660.0,107650.0,0.80448232]
[1760869195932,1e-08,107660.0,107650.0,0.8406646]
[1760869196165,1e-08,107660.0,107650.0,2.02791262]
[1760869196451,0.00035566,107660.0,107650.0,1.72791262]
[1760869196783,0.00035566,107660.0,107650.0,2.02791262]
[1760869197247,1e-08,107660.0,107650.0,2.0479126]
[1760869197958,0.00048,107670.0,107660.0,0.22195229]
[1760869198164,0.00048,107670.0,107660.0,0.53125828]
[1760869198508,0.00048,107670.0,107660.0,0.53497971]
[1760869199035,0.00048,107670.0,107660.0,0.53597971]
[1760869201007,0.00048,107670.0,107660.0,0.52597972]
[1760869201127,0.00209773,107670.0,107660.0,0.53597971]
[1760869202249,0.01844545,107700.0,107660.0,0.53597971]
[1760869202412,0.94508178,107760.0,107700.0,0.18570102]
[1760869202612,0.2037101,107720.0,107710.0,0.09408]
[1760869203181,0.18571826,107690.0,107680.0,0.1473]
[1760869203392,0.18575035,107680.0,107660.0,0.24436512]
[1760869203595,0.18575035,107680.0,107670.0,0.18849088]
[1760869203802,0.19500417,107690.0,107670.0,0.37424273]
[1760869204002,0.00071114,107680.0,107670.0,0.43703237]
[1760869204468,0.00071114,107680.0,107670.0,0.47321465]
[1760869205839,0.00071114,107680.0,107670.0,0.47421465]
[1760869206826,0.18806449,107680.0,107670.0,0.15820052]
[1760869207021,0.18806449,107680.0,107670.0,0.25228052]
[1760869207254,0.52806449,107680.0,107670.0,0.001]
[1760869207661,0.52644665,107680.0,107670.0,0.09408]
[1760869208586,0.00071114,107680.0,107670.0,0.09408]
[1760869208790,0.18644665,107680.0,107670.0,0.12206493]
[1760869209563,0.00071114,107680.0,107670.0,0.30781769]
[1760869211136,0.00232913,107680.0,107670.0,0.40222857]
[1760869211340,0.00232913,107680.0,107670.0,0.43841085]
[1760869214329,0.00232913,107680.0,107670.0,0.43941085]
[1760869214740,0.18806464,107680.0,107670.0,0.001]
[1760869214945,0.00232913,107680.0,107670.0,0.28079276]
[1760869215745,0.18806464,107680.0,107670.0,0.28079276]
[1760869215947,0.18806464,107680.0,107670.0,0.09504]
[1760869216156,0.18806464,107680.0,107670.0,0.09596891]
[1760869216369,0.18806464,107680.0,107670.0,0.09404]
[1760869217416,0.00232913,107680.0,107670.0,0.27979276]
[1760869217616,0.18806464,107680.0,107670.0,0.09404]
[1760869220306,0.18806464,107680.0,107670.0,0.27979276]
[1760869220544,0.18806464,107680.0,107670.0,0.09404]
[1760869220953,0.18806464,107680.0,107670.0,0.12202089]
[1760869222284,0.18806464,107680.0,107670.0,0.09404]
[1760869222825,0.52806464,107680.0,107670.0,0.09404]
[1760869223389,0.52644665,107680.0,107670.0,0.09404]
[1760869223776,0.52576566,107670.0,107660.0,0.09404]
[1760869226789,0.5273838,107670.0,107660.0,0.09404]
[1760869227003,0.5273838,107670.0,107660.0,0.12202264]
[1760869228389,0.5273838,107670.0,107660.0,0.09404]
[1760869229239,0.52773941,107670.0,107660.0,0.09404]
[1760869230895,0.52773941,107670.0,107660.0,0.27981001]
[1760869231037,0.34197375,107670.0,107660.0,0.27981001]
[1760869231245,0.52772651,107670.0,107660.0,0.27981001]
[1760869231612,0.52772651,107670.0,107660.0,0.14059965]
[1760869233081,0.18772651,107670.0,107660.0,0.32636966]
[1760869233258,0.00197375,107670.0,107660.0,0.32636966]
[1760869234445,0.00197375,107670.0,107660.0,0.45696282]
[1760869235057,0.00035561,107670.0,107660.0,0.45696282]
[1760869235632,0.00035561,107670.0,107660.0,0.45796282]
[1760869236833,6.991e-05,107670.0,107660.0,0.45796282]
[1760869237864,6.991e-05,107670.0,107660.0,0.79796282]
[1760869238272,6.991e-05,107670.0,107660.0,0.83110109]
[1760869239090,0.00168774,107670.0,107660.0,0.83110109]
[1760869239445,0.00168774,107670.0,107660.0,1.57104911]
[1760869239656,6.991e-05,107670.0,107660.0,1.87104911]
[1760869241071,6.991e-05,107670.0,107660.0,1.87004911]
[1760869241276,6.991e-05,107670.0,107660.0,1.53891084]
[1760869241478,6.991e-05,107670.0,107660.0,0.70492282]
[1760869241819,0.00010991,107670.0,107660.0,0.79896282]
[1760869242048,0.0004,107720.0,107710.0,0.18568378]
[1760869242278,0.18621531,107720.0,107710.0,0.11260838]
[1760869242478,0.18621531,107720.0,107710.0,0.29829216]
[1760869242666,0.18783295,107720.0,107710.0,0.29829216]
[1760869242852,0.03520447,107720.0,107710.0,0.29829216]
[1760869244294,0.22087101,107720.0,107710.0,0.29829216]
[1760869245495,0.03520447,107720.0,107710.0,0.29829216]
[1760869246525,0.22087101,107720.0,107710.0,0.29829216]
[1760869246733,0.21925337,107720.0,107710.0,0.29829216]
[1760869247083,0.03358683,107720.0,107710.0,0.29829216]
[1760869247758,0.03536393,107720.0,107710.0,0.29829216]
[1760869247957,0.03536393,107720.0,107710.0,0.39270304]
[1760869249393,0.03540393,107720.0,107710.0,0.39270304]
[1760869250151,0.00236587,107720.0,107710.0,0.42888532]
[1760869251873,0.00236587,107720.0,107710.0,0.42988532]
[1760869252105,0.18782445,107720.0,107710.0,0.39370304]
[1760869252294,0.00215791,107720.0,107710.0,0.39370304]
[1760869252491,0.00215791,107720.0,107710.0,0.29866304]
[1760869252752,0.00215791,107720.0,107710.0,0.39266304]
[1760869255300,0.0037754,107720.0,107710.0,0.39266304]
[1760869256727,0.00215791,107720.0,107710.0,0.39266304]
[1760869260125,0.00215791,107720.0,107710.0,0.42884532]
[1760869260447,0.00377533,107720.0,107710.0,0.42884532]
[1760869260920,0.00377533,107720.0,107710.0,0.39266304]
[1760869261321,0.00377533,107720.0,107710.0,0.39366304]
[1760869261820,0.18944187,107720.0,107710.0,0.20797926]
[1760869262024,0.18944187,107720.0,107710.0,0.094]
[1760869262252,0.18944187,107720.0,107710.0,0.27968378]
[1760869262487,0.18944187,107720.0,107710.0,0.104]
[1760869262917,0.52782445,107720.0,107710.0,0.104]
[1760869263127,0.60244773,107720.0,107710.0,0.01]
[1760869263876,0.52782445,107720.0,107710.0,0.01]
[1760869264848,0.18782445,107720.0,107710.0,0.10396]
[1760869265854,0.00377552,107720.0,107710.0,0.38405466]
[1760869266319,0.17392038,107730.0,107710.0,0.38405466]
[1760869266537,0.51441599,107730.0,107720.0,0.18566654]
[1760869266945,0.20698356,107730.0,107720.0,0.18566654]
[1760869267148,0.20698356,107730.0,107710.0,0.44103006]
[1760869267412,0.03306318,107730.0,107720.0,0.18566654]
[1760869268643,0.21871248,107730.0,107720.0,0.18566654]
[1760869268941,0.21871248,107730.0,107720.0,0.2483362]
[1760869269521,0.03306318,107730.0,107720.0,0.2483362]
[1760869270215,0.21871248,107730.0,107720.0,0.06266966]
[1760869270419,0.21871248,107730.0,107720.0,0.2483362]
[1760869270999,0.21871248,107730.0,107710.0,0.38405466]
[1760869271204,0.18566654,107720.0,107710.0,0.29009466]
[1760869271405,0.18566654,107720.0,107710.0,0.38405466]
[1760869272056,0.18566654,107720.0,107710.0,0.19837088]
[1760869272496,0.18566654,107720.0,107710.0,0.10396]
[1760869273223,0.52566654,107720.0,107710.0,0.10396]
[1760869273426,0.52566654,107720.0,107710.0,0.13292599]
[1760869274252,0.52566654,107720.0,107710.0,0.31860977]
[1760869274615,0.00161755,107720.0,107710.0,0.41302065]
[1760869274810,0.03306318,107730.0,107720.0,0.18566654]
[1760869275014,0.18566654,107720.0,107710.0,0.22733687]
[1760869275214,0.21871302,107730.0,107710.0,0.28964378]
[1760869275395,0.21906832,107730.0,107720.0,0.18566654]
[1760869275586,0.21906832,107730.0,107710.0,0.28964378]
[1760869276085,0.21906778,107730.0,107720.0,0.18566654]
[1760869276284,0.21906778,107730.0,107720.0,0.24263866]
[1760869277705,0.03341848,107730.0,107720.0,0.24263866]
[1760869277847,0.21906778,107730.0,107720.0,0.24263866]
[1760869278600,0.03503593,107730.0,107720.0,0.24263866]
[1760869279435,0.03503593,107730.0,107720.0,0.33704954]
[1760869280279,0.22068523,107730.0,107720.0,0.151383]
[1760869280418,0.03503593,107730.0,107720.0,0.24263866]
[1760869280620,0.06018682,107730.0,107720.0,0.24263866]
[1760869281060,0.09702694,107730.0,107720.0,0.24263866]
[1760869281608,0.09702694,107730.0,107720.0,0.05697212]
[1760869281749,0.09702694,107730.0,107720.0,0.09396]
[1760869283455,0.52566654,107720.0,107710.0,0.01]
[1760869283706,0.52566654,107720.0,107710.0,0.10396]
[1760869285271,0.52728418,107720.0,107710.0,0.10396]
[1760869286055,0.52570102,107700.0,107690.0,0.00145689]
[1760869286258,3.7140719,107700.0,107690.0,0.00145689]
[1760869286987,3.71568996,107700.0,107690.0,0.00145689]
[1760869288573,3.71568996,107700.0,107690.0,0.00136889]
[1760869288780,3.71668996,107700.0,107690.0,0.00136889]
[1760869289208,3.75618512,107700.0,107690.0,0.00136889]
[1760869289611,3.74461232,107700.0,107690.0,0.00136889]
[1760869290962,3.74461232,107700.0,107620.0,1.09852093]
[1760869291168,0.19509475,107640.0,107610.0,0.1858553]
[1760869291385,0.19509475,107640.0,107620.0,0.09424]
[1760869291596,0.19509475,107640.0,107620.0,0.28077429]
[1760869291814,0.19509475,107640.0,107630.0,0.00248968]
[1760869292503,0.19509475,107640.0,107630.0,0.00298529]
[1760869293002,0.23336324,107640.0,107630.0,0.00298529]
[1760869294210,0.2349817,107640.0,107630.0,0.00298529]
[1760869294409,0.03395,107640.0,107630.0,0.00298529]
[1760869294737,0.21975453,107640.0,107630.0,0.00298529]
[1760869295113,0.22904475,107640.0,107630.0,0.00298529]
[1760869295318,0.22904475,107640.0,107630.0,0.00049561]
[1760869297741,0.03395,107640.0,107630.0,0.00049561]
[1760869297942,0.00161846,107640.0,107630.0,5.28072828]
[1760869298141,0.00161846,107640.0,107630.0,5.3751347]
[1760869298911,0.00161846,107640.0,107630.0,5.3761347]
[1760869299463,0.03789213,107650.0,107640.0,0.18580453]
[1760869299666,0.03789213,107650.0,107640.0,0.28004453]
[1760869299818,0.28951285,107670.0,107650.0,0.185786]
[1760869300032,0.28951285,107670.0,107650.0,0.23236905]
[1760869300592,0.19510197,107670.0,107650.0,0.23236905]
[1760869300998,0.18577001,107660.0,107650.0,0.04658305]
[1760869301181,0.52580453,107640.0,107630.0,5.00049561]
[1760869301615,0.52580453,107640.0,107630.0,5.09485561]
[1760869302360,0.52742306,107640.0,107630.0,5.09485561]
[1760869302561,0.52742306,107640.0,107630.0,5.00049561]
[1760869302562,0.6959499,107640.0,107630.0,5.00049561]
[1760869304113,0.62183394,107640.0,107630.0,5.00049561]
[1760869304887,0.62283394,107640.0,107630.0,5.00049561]
[1760869308916,3.62283394,107640.0,107630.0,5.00049561]
[1760869311403,3.64013086,107640.0,107630.0,5.00049561]
[1760869312594,3.66806914,107640.0,107630.0,5.00049561]
[1760869314557,3.64013086,107640.0,107630.0,5.00049561]
[1760869321288,0.64013086,107640.0,107630.0,5.00049561]
[1760869321730,0.64013086,107640.0,107630.0,5.09469561]
[1760869323163,0.54571998,107640.0,107630.0,5.09469561]
[1760869323501,0.64013086,107640.0,107630.0,5.00049561]
[1760869323737,3.72272412,107640.0,107630.0,5.00049561]
[1760869323941,3.72283253,107640.0,107630.0,5.00049561]
[1760869324150,3.72183253,107640.0,107630.0,5.00049561]
[1760869324364,3.63923927,107640.0,107630.0,5.00049561]
[1760869324577,0.63923927,107640.0,107630.0,5.00049561]
[1760869324751,0.54482839,107640.0,107630.0,5.00049561]
[1760869325812,0.54320986,107640.0,107630.0,5.00049561]
[1760869326720,0.54320986,107640.0,107630.0,5.1863174]
[1760869326868,0.54320986,107640.0,107630.0,5.09490203]
[1760869329459,0.54482851,107640.0,107630.0,5.09490203]
[1760869333161,0.54482851,107640.0,107630.0,5.28072382]
[1760869333661,0.52742318,107640.0,107630.0,5.28072382]
[1760869333862,0.00161865,107640.0,107630.0,5.28072382]
[1760869334294,0.03705311,107670.0,107660.0,0.18577001]
[1760869334448,0.05447,107670.0,107660.0,0.3170845]
[1760869334640,0.35741689,107670.0,107660.0,0.3170845]
[1760869334842,0.01741689,107670.0,107660.0,0.3170845]
[1760869335069,0.18573604,107680.0,107660.0,0.3170845]
[1760869335269,0.1950699,107690.0,107670.0,0.18575276]
[1760869335449,0.64688597,107690.0,107680.0,0.09416]
[1760869335660,0.34461292,107690.0,107680.0,0.09416]
[1760869336033,0.34461292,107690.0,107680.0,0.09316]
[1760869336234,0.32720773,107690.0,107680.0,0.09316]
[1760869336390,0.32720773,107690.0,107680.0,0.09365561]
[1760869336809,0.66720773,107690.0,107680.0,0.09365561]
[1760869337044,0.66720773,107690.0,107680.0,0.12662482]
[1760869337576,0.66882589,107690.0,107680.0,0.09365561]
[1760869337916,0.66820773,107690.0,107680.0,0.09365561]
[1760869341105,0.66982592,107690.0,107680.0,0.09365561]
[1760869341864,0.38963105,107690.0,107680.0,0.09365561]
[1760869342079,0.57534931,107690.0,107680.0,0.09365561]
[1760869342518,0.57534931,107690.0,107680.0,0.12159615]
[1760869342694,0.57373112,107690.0,107680.0,0.12159615]
[1760869343806,0.57273112,107690.0,107680.0,0.12159615]
[1760869344241,0.57373112,107690.0,107680.0,0.12159615]
[1760869345832,0.57534927,107690.0,107680.0,0.12159615]
[1760869350288,0.57534927,107690.0,107680.0,0.30733166]
[1760869351108,0.57434927,107690.0,107680.0,0.30733166]
[1760869351309,0.57434927,107690.0,107680.0,0.12159615]
[1760869353632,0.57434927,107690.0,107680.0,0.09365561]
[1760869366864,0.57434927,107690.0,107680.0,0.00049561]
[1760869367071,0.66876015,107690.0,107680.0,0.00049561]
[1760869367618,0.48890585,107690.0,107680.0,0.00049561]
[1760869368028,0.39449497,107690.0,107680.0,0.00049561]
[1760869368604,0.22578122,107690.0,107680.0,0.00049561]
[1760869368966,0.23506713,107690.0,107680.0,0.00049561]
[1760869369172,0.23606713,107690.0,107680.0,0.00049561]
[1760869369632,0.33047801,107690.0,107680.0,0.00049561]
[1760869369994,0.38214329,107690.0,107680.0,0.00049561]
[1760869370199,0.33047801,107690.0,107680.0,0.00049561]
[1760869370405,0.33047801,107690.0,107680.0,0.09449561]
[1760869370782,0.67047801,107690.0,107680.0,0.00049561]
[1760869374909,0.6984038,107690.0,107680.0,0.00049561]
[1760869376777,0.3584038,107690.0,107680.0,0.00049561]
[1760869376979,0.33047801,107690.0,107680.0,0.00049561]
[1760869377237,0.67047801,107690.0,107680.0,0.00049561]
[1760869378432,0.57606713,107690.0,107680.0,0.09449561]
[1760869378592,0.57606713,107690.0,107680.0,0.12252014]
[1760869379375,0.38106296,107690.0,107680.0,0.12252014]
[1760869379600,0.56678122,107690.0,107680.0,0.12252014]
[1760869380236,0.56578122,107690.0,107680.0,0.09449561]
[1760869381053,0.56578122,107690.0,107680.0,0.00049561]
[1760869381259,0.56578122,107690.0,107680.0,0.09449561]
[1760869382214,0.56578122,107690.0,107680.0,0.00049561]
[1760869382902,0.6601921,107690.0,107680.0,0.00049561]
[1760869383716,0.6611921,107690.0,107680.0,0.00049561]
[1760869385368,0.74592878,107690.0,107680.0,0.00049561]
[1760869385569,3.77385457,107690.0,107680.0,0.00049561]
[1760869385992,3.68911789,107690.0,107680.0,0.00049561]
[1760869386848,3.68749974,107690.0,107680.0,0.00049561]
[1760869390596,3.68911799,107690.0,107680.0,0.00049561]
[1760869393485,3.73530026,107690.0,107680.0,0.00049561]
[1760869393857,3.73368201,107690.0,107680.0,0.00049561]
[1760869394058,3.73368201,107690.0,107630.0,5.0]
[1760869394059,0.18580453,107640.0,107630.0,5.0]
[1760869394322,0.18578727,107650.0,107630.0,5.27996959]
[1760869394499,0.18577001,107660.0,107640.0,0.18580453]
[1760869394703,0.28018089,107660.0,107640.0,0.18580453]
[1760869395115,0.28946939,107660.0,107640.0,0.18580453]
[1760869395319,0.28946939,107660.0,107640.0,0.28021095]
[1760869395543,0.18578727,107650.0,107640.0,0.28021095]
[1760869396831,0.28946939,107660.0,107640.0,0.28021095]
[1760869397385,0.18578727,107650.0,107640.0,0.28021095]
[1760869398017,0.18740568,107650.0,107640.0,0.28021095]
[1760869399541,0.18740568,107650.0,107640.0,0.09440642]
[1760869400027,0.52740568,107650.0,107630.0,5.28926067]
[1760869400443,0.52740568,107650.0,107640.0,0.18580453]
[1760869401476,0.34161841,107650.0,107640.0,0.18580453]
[1760869402096,0.00161841,107650.0,107640.0,0.18580453]
[1760869403457,0.03721815,107670.0,107660.0,0.18577001]
[1760869403692,0.34,107670.0,107660.0,0.31692574]
[1760869403896,3.18573551,107680.0,107670.0,0.18574375]
[1760869404096,3.0,107680.0,107670.0,0.18574375]
[1760869404307,3.18573551,107680.0,107670.0,0.18574375]
[1760869404522,0.52573551,107680.0,107670.0,0.05026695]
[1760869405080,0.52578501,107680.0,107670.0,0.05026695]
[1760869405460,0.52578501,107680.0,107670.0,0.23601971]
[1760869406495,4.95e-05,107680.0,107670.0,0.23601971]
[1760869407775,0.0016675,107680.0,107670.0,0.23601971]
[1760869414848,4.95e-05,107680.0,107670.0,0.33043059]
[1760869415103,4.95e-05,107680.0,107670.0,0.70661287]
[1760869415284,4.95e-05,107680.0,107670.0,1.00661287]
[1760869415455,4.95e-05,107680.0,107670.0,1.0345237]
[1760869416438,4.95e-05,107680.0,107670.0,1.0355237]
[1760869416824,4.95e-05,107680.0,107670.0,1.0345237]
[1760869417122,4.95e-05,107680.0,107670.0,1.0365237]
[1760869417772,1e-08,107700.0,107690.0,0.22190054]
[1760869417995,1e-08,107700.0,107690.0,1.52182146]
[1760869418288,0.00161746,107700.0,107690.0,1.52182146]
[1760869419227,0.00161746,107700.0,107690.0,1.52282146]
[1760869419634,0.00161746,107700.0,107690.0,1.56057665]
[1760869419842,0.00161746,107700.0,107690.0,1.85957665]
[1760869420050,0.00161746,107700.0,107690.0,1.86157665]
[1760869420630,0.00161746,107700.0,107690.0,1.52382146]
[1760869421040,0.00161746,107700.0,107690.0,1.42982146]
[1760869421251,0.00161746,107700.0,107690.0,1.52378146]
[1760869422232,0.00161746,107700.0,107690.0,1.42982146]
[1760869422491,0.00161746,107700.0,107690.0,1.18378146]
[1760869422703,0.00161746,107700.0,107690.0,0.28227791]
[1760869422913,1e-08,107700.0,107690.0,0.37623791]
[1760869423116,1e-08,107700.0,107690.0,0.37423791]
[1760869423508,1e-08,107700.0,107690.0,0.37523791]
[1760869424054,1e-08,107700.0,107690.0,0.37423791]
[1760869424283,1e-08,107700.0,107690.0,0.43023382]
[1760869424803,1e-08,107700.0,107690.0,0.4664161]
[1760869424959,1e-08,107700.0,107690.0,1.1970152]
[1760869425202,1e-08,107700.0,107690.0,1.5370152]
[1760869425390,1e-08,107700.0,107690.0,1.5380152]
[1760869425987,1e-08,107700.0,107690.0,1.8370152]
[1760869426204,1e-08,107700.0,107690.0,1.84801519]
[1760869426409,1e-08,107700.0,107690.0,1.87591923]
[1760869426621,1e-08,107700.0,107690.0,1.88591922]
[1760869426829,1e-08,107700.0,107690.0,1.88491922]
[1760869427002,1e-08,107700.0,107690.0,1.88691922]
[1760869427241,0.00161728,107700.0,107690.0,1.88691922]
[1760869427447,1e-08,107700.0,107690.0,1.88691922]
[1760869427648,0.1860561,107750.0,107740.0,0.18563207]
[1760869427850,0.1860561,107750.0,107740.0,0.31671881]
[1760869428056,0.00044,107750.0,107740.0,0.31671881]
[1760869428228,0.1878312,107750.0,107740.0,0.31671881]
[1760869428645,0.22547447,107750.0,107740.0,0.31671881]
[1760869428873,0.22597036,107750.0,107740.0,0.31671881]
[1760869429293,0.04035552,107750.0,107740.0,0.31671881]
[1760869429943,0.22597036,107750.0,107740.0,0.13108674]
[1760869430172,0.22597036,107750.0,107740.0,0.31739803]
[1760869430495,0.04035552,107750.0,107740.0,0.31671881]
[1760869430875,0.04197278,107750.0,107740.0,0.31671881]
[1760869431313,0.22758762,107750.0,107740.0,0.13108674]
[1760869431931,0.22758762,107750.0,107740.0,0.09396]
[1760869432087,0.22597036,107750.0,107740.0,0.27959207]
[1760869432742,0.18563207,107740.0,107720.0,0.19492698]
[1760869432937,0.224194,107750.0,107730.0,0.2799023]
[1760869433176,0.224194,107750.0,107730.0,0.2795693]
[1760869433395,0.18563207,107740.0,107730.0,0.09392]
[1760869433587,0.18563207,107740.0,107720.0,0.19492698]
[1760869433788,0.18563207,107740.0,107730.0,0.09392]
[1760869434020,0.1856508,107730.0,107710.0,0.18565901]
[1760869434219,0.18563207,107740.0,107720.0,0.28001335]
[1760869434418,0.18563207,107740.0,107720.0,0.27958654]
[1760869434576,0.18563207,107740.0,107720.0,0.33555218]
[1760869434956,0.18563207,107740.0,107720.0,0.33655218]
[1760869435182,0.0016174,107740.0,107720.0,0.33655218]
[1760869435385,0.18725011,107740.0,107720.0,0.33555218]
[1760869435910,0.1856493,107730.0,107720.0,0.33555218]
[1760869436681,0.1856493,107730.0,107720.0,0.14988564]
[1760869436880,0.1856493,107730.0,107720.0,0.33555218]
[1760869437093,0.18725011,107740.0,107720.0,0.33555218]
[1760869437764,0.1856493,107730.0,107720.0,0.14988564]
[1760869437958,0.1856493,107730.0,107720.0,0.15088564]
[1760869438173,0.18671532,107730.0,107720.0,0.33655218]
[1760869438375,0.18671532,107730.0,107720.0,0.33555218]
[1760869438828,0.18671532,107730.0,107720.0,0.14988564]
[1760869438993,0.18671532,107730.0,107720.0,0.33555218]
[1760869439580,0.00106602,107730.0,107720.0,0.33655218]
[1760869441450,0.00106602,107730.0,107720.0,0.43096306]
[1760869444308,0.00106602,107730.0,107720.0,0.46714534]
[1760869445089,0.00106602,107730.0,107720.0,1.19774444]
[1760869446086,0.00106602,107730.0,107720.0,1.2350834]
[1760869446293,0.00106602,107730.0,107720.0,1.5750834]
[1760869446817,0.00106602,107730.0,107720.0,1.5740834]
[1760869447026,0.00093589,107750.0,107740.0,0.22181435]
[1760869447224,0.00093589,107750.0,107740.0,0.45089015]
[1760869448490,0.00093589,107750.0,107740.0,1.18148925]
[1760869448861,0.00093589,107750.0,107740.0,1.18248925]
[1760869449067,0.00255286,107750.0,107740.0,1.18248925]
[1760869452249,0.00255286,107750.0,107740.0,1.08856925]
[1760869452426,0.00255286,107750.0,107740.0,0.45185015]
[1760869452845,0.0032633,107750.0,107740.0,0.45185015]
[1760869453820,0.0032633,107750.0,107740.0,0.32178787]
[1760869454035,0.0032633,107750.0,107740.0,0.41566787]
[1760869454629,0.18887814,107750.0,107740.0,0.41566787]
[1760869454876,0.18887814,107750.0,107740.0,0.18663207]
[1760869455080,0.00164633,107750.0,107740.0,0.28051207]
[1760869456429,0.18726117,107750.0,107740.0,0.09388]
[1760869456600,0.18726117,107750.0,107740.0,0.27951207]
[1760869457159,0.18726117,107750.0,107740.0,0.09388]
[1760869457368,0.18563207,107740.0,107720.0,0.2509155]
[1760869457581,0.18563207,107740.0,107730.0,0.2795293]
[1760869457792,0.18598732,107740.0,107730.0,0.15636557]
[1760869458013,0.18760458,107740.0,107730.0,0.09388]
[1760869458683,0.18760458,107740.0,107730.0,0.2795293]
[1760869459315,0.00197251,107740.0,107730.0,0.2795293]
[1760869461149,0.18760458,107740.0,107730.0,0.09388]
[1760869461688,0.18760458,107740.0,107730.0,0.2795293]
[1760869461894,0.00197251,107740.0,107730.0,0.33164543]
[1760869462293,0.18760458,107740.0,107730.0,0.33164543]
[1760869462560,0.00197251,107740.0,107730.0,0.33164543]
[1760869462842,0.18760458,107740.0,107730.0,0.33164543]
[1760869463737,0.51338496,107750.0,107730.0,0.2795293]
[1760869463989,0.18563207,107740.0,107730.0,0.2795293]
[1760869464528,0.18563207,107740.0,107730.0,0.09388]
[1760869468263,0.18724931,107740.0,107730.0,0.09388]
[1760869470561,0.00161724,107740.0,107730.0,0.2795293]
[1760869470983,0.18724931,107740.0,107730.0,0.09388]
[1760869471404,0.18724931,107740.0,107730.0,0.2795293]
[1760869471846,0.00161724,107740.0,107730.0,0.2795293]
[1760869472076,0.00161724,107740.0,107730.0,0.32604887]
[1760869474240,0.00161724,107740.0,107730.0,0.42045975]
[1760869474480,0.34,107760.0,107750.0,0.18560631]
[1760869474701,0.3401487,107760.0,107750.0,0.27948631]
[1760869474922,0.34085905,107760.0,107750.0,0.27948631]
[1760869475150,0.34085905,107760.0,107750.0,0.32599613]
[1760869475336,0.00085905,107760.0,107750.0,0.32599613]
[1760869475808,0.18645667,107760.0,107750.0,0.32599613]
[1760869476164,0.18645667,107760.0,107750.0,0.27948631]
[1760869476669,0.00085905,107760.0,107750.0,0.27948631]
[1760869476875,0.18645667,107760.0,107750.0,0.27948631]
[1760869477177,0.00247602,107760.0,107750.0,0.27948631]
[1760869478781,0.00247602,107760.0,107750.0,0.37389719]
[1760869478986,0.00247602,107760.0,107750.0,0.4298481]
[1760869480340,0.00247602,107760.0,107750.0,0.46603038]
[1760869481148,0.00247602,107760.0,107750.0,0.80603038]
[1760869481350,0.0004,107770.0,107760.0,0.2217799]
[1760869481524,0.0004,107770.0,107760.0,0.31619078]
[1760869481726,1e-08,107770.0,107760.0,1.77568443]
[1760869482710,1e-08,107770.0,107760.0,1.47568443]
[1760869482897,1e-08,107770.0,107760.0,1.47668443]
[1760869483349,1e-08,107770.0,107760.0,1.57052443]
[1760869484261,1e-08,107770.0,107760.0,1.56952443]
[1760869484602,1e-08,107770.0,107760.0,1.57152443]
[1760869485003,1e-08,107770.0,107760.0,0.84092533]
[1760869486555,1e-08,107770.0,107760.0,0.80474305]
[1760869486749,1e-08,107770.0,107760.0,0.71090305]
[1760869486951,1e-08,107770.0,107760.0,0.46474305]
[1760869487634,1e-08,107770.0,107760.0,0.46274305]
[1760869487825,1e-08,107770.0,107760.0,0.46374305]
[1760869488045,0.00161657,107770.0,107760.0,0.46374305]
[1760869489422,0.00161657,107770.0,107760.0,0.36990305]
[1760869489605,0.18719697,107770.0,107760.0,0.46374305]
[1760869489813,0.18719697,107770.0,107760.0,0.28043762]
[1760869490018,0.00161657,107770.0,107760.0,0.28043762]
[1760869490404,0.18719697,107770.0,107760.0,0.27943762]
[1760869490626,0.18719697,107770.0,107760.0,0.28043762]
[1760869490844,1e-08,107770.0,107760.0,0.41103078]
[1760869491052,1e-08,107770.0,107760.0,0.81628958]
[1760869491446,1e-08,107770.0,107760.0,1.55960709]
[1760869492016,1e-08,107780.0,107770.0,0.57176267]
[1760869492167,1e-08,107780.0,107770.0,0.73580522]
[1760869492369,1e-08,107780.0,107770.0,0.74580521]
[1760869492590,1e-08,107780.0,107770.0,1.0558052]
[1760869492791,0.00058367,107800.0,107790.0,0.56172824]
[1760869492970,0.0004,107810.0,107800.0,0.56171103]
[1760869493185,0.0004,107810.0,107800.0,0.70264148]
[1760869493593,0.0004,107810.0,107800.0,0.45648148]
[1760869493815,0.0004,107810.0,107800.0,0.4202992]
[1760869494265,0.0004,107810.0,107800.0,0.4212992]
[1760869494913,0.0004,107810.0,107800.0,0.4202992]
[1760869495393,0.18591154,107810.0,107800.0,0.4212992]
[1760869495525,0.18752767,107810.0,107800.0,0.001]
[1760869495723,0.18752767,107810.0,107800.0,0.0948]
[1760869496079,0.00201613,107810.0,107800.0,0.28125494]
[1760869496295,0.18752767,107810.0,107800.0,0.0948]